bitfinex-derivatives/quotes_ETHF0:USTF0_20250626
["timestamp","ask_amount","ask_price","bid_price","bid_amount"]
[1750899394598,0.82379,2426.3,2426.0,3.50859113]
[1750899394800,2.82366,2426.4,2426.1,0.82381]
[1750899395098,1.02751078,2426.3,2426.2,0.8238]
[1750899395392,0.82374,2426.4,2426.2,2.68475113]
[1750899395597,3.9281,2426.5,2426.2,2.68475113]
[1750899395789,5.3643,2426.5,2426.2,2.68475113]
[1750899396190,0.82376,2426.3,2426.2,2.68475113]
[1750899396693,5.3643,2426.5,2426.1,0.82382]
[1750899396894,0.82378,2426.3,2426.1,0.82382]
[1750899397396,0.82378,2426.3,2426.2,43.48475113]
[1750899397598,0.7203,2426.5,2426.3,0.82374]
[1750899397803,0.7203,2426.5,2426.2,46.69255113]
[1750899398801,0.7203,2426.5,2426.4,0.82373]
[1750899399009,0.7203,2426.5,2426.2,46.69255113]
[1750899399010,1.54401,2426.5,2426.2,47.51633113]
[1750899399710,0.7203,2426.5,2426.2,46.69255113]
[1750899399908,1.54401,2426.5,2426.3,0.82375]
[1750899400107,0.7203,2426.5,2426.2,46.69255113]
[1750899400308,0.82374,2426.4,2426.2,47.51634113]
[1750899401209,0.82376,2426.3,2426.2,46.69255113]
[1750899401404,0.82376,2426.3,2426.2,44.0078]
[1750899401611,0.82376,2426.3,2426.2,40.8]
[1750899402110,2.24846,2426.3,2426.2,40.8]
[1750899402509,0.82383,2426.1,2426.0,6.517]
[1750899402707,2.24851,2426.2,2426.0,10.02562113]
[1750899402911,0.82381,2426.2,2426.0,50.82562113]
[1750899403113,0.82379,2426.3,2426.1,0.82383]
[1750899403606,0.7203,2426.5,2426.0,44.30860113]
[1750899403607,0.8238,2426.2,2426.0,44.30860113]
[1750899404412,0.8238,2426.2,2426.1,0.6939]
[1750899405710,1.3884,2426.4,2426.1,0.6939]
[1750899405912,0.82377,2426.3,2426.1,1.51771]
[1750899406111,1.3884,2426.4,2426.3,0.82376]
[1750899406312,0.82376,2426.3,2426.2,2.68475113]
[1750899406810,2.21214,2426.4,2426.2,2.68475113]
[1750899407012,1.3884,2426.4,2426.2,2.68475113]
[1750899407513,1.3884,2426.4,2426.3,0.82376]
[1750899407913,1.54402,2426.5,2426.3,0.82376]
[1750899408114,0.82378,2426.3,2426.1,4.72552]
[1750899408316,0.82378,2426.3,2426.2,2.68475113]
[1750899409216,0.8238,2426.2,2426.1,3.9017]
[1750899410617,0.7203,2426.5,2426.1,3.9017]
[1750899410819,0.8238,2426.2,2426.1,3.9017]
[1750899411013,0.8238,2426.2,2426.1,6.58645113]
[1750899413115,0.82378,2426.3,2426.1,7.41028113]
[1750899413817,0.8238,2426.2,2426.1,7.41028113]
[1750899414218,0.8238,2426.2,2426.1,6.58645113]
[1750899414720,0.8238,2426.2,2426.1,3.37865113]
[1750899415511,0.8238,2426.2,2426.1,0.6939]
[1750899415714,0.82383,2426.1,2426.0,47.303]
[1750899415915,2.23993,2426.1,2426.0,6.503]
[1750899419716,3.27160953,2426.1,2426.0,6.503]
[1750899420117,0.82397,2425.7,2425.6,6.503]
[1750899420316,0.82397,2425.7,2425.4,3.2078]
[1750899420317,0.82404,2425.5,2425.4,3.2078]
[1750899421619,2.20904,2425.5,2425.4,3.2078]
[1750899421819,1.385,2425.5,2425.4,4.03187]
[1750899422125,2.20904,2425.5,2425.4,3.2078]
[1750899423919,0.82407,2425.4,2425.3,6.503]
[1750899424127,2.20907,2425.4,2425.3,6.503]
[1750899424522,0.7019,2425.6,2425.4,0.82405]
[1750899424726,0.7019,2425.6,2425.4,1.51985]
[1750899424926,0.7019,2425.6,2425.5,0.82404]
[1750899425125,5.39985,2425.8,2425.5,3.50877113]
[1750899425329,1.03486823,2425.7,2425.5,3.50877113]
[1750899425622,0.82397,2425.7,2425.5,3.38875113]
[1750899426216,2.9205,2425.6,2425.4,0.6958]
[1750899426422,4.03175,2425.8,2425.6,0.82399]
[1750899426622,4.76015,2425.8,2425.6,0.82399]
[1750899426817,6.12825,2425.8,2425.6,0.82399]
[1750899427328,5.3043,2425.8,2425.7,0.82397]
[1750899427626,1.03502774,2425.8,2425.7,3.50872113]
[1750899427824,6.02912,2426.2,2425.9,0.82387]
[1750899428028,2.36921486,2426.1,2426.0,0.82386]
[1750899428332,2.36921486,2426.1,2425.8,0.6909]
[1750899428333,2.36921486,2426.1,2425.9,0.82388]
[1750899428525,1.03491486,2426.0,2425.9,3.50863113]
[1750899428825,3.871,2426.2,2425.9,2.68475113]
[1750899429029,1.03486141,2426.1,2426.0,0.82385]
[1750899429831,12.17478736,2426.7,2426.0,3.2078]
[1750899430030,0.82372,2426.5,2426.3,3.50850113]
[1750899430228,1.03474958,2426.4,2426.3,3.50850113]
[1750899431425,0.82378,2426.3,2426.1,3.50857113]
[1750899432429,0.82378,2426.3,2426.1,2.68475113]
[1750899432630,0.82378,2426.3,2426.1,3.50857113]
[1750899433032,1.3982,2426.4,2426.1,2.68475113]
[1750899433228,1.3982,2426.4,2426.0,3.2078]
[1750899433424,1.71554455,2426.3,2425.9,9.18875113]
[1750899433625,0.82386,2426.1,2425.9,9.18875113]
[1750899434030,0.6947,2426.2,2426.0,4.03165]
[1750899434221,0.6947,2426.2,2426.0,0.82385]
[1750899434529,1.5185,2426.2,2426.0,0.82385]
[1750899435126,0.6947,2426.2,2426.0,0.82385]
[1750899435713,0.6947,2426.2,2425.9,10.01263113]
[1750899435930,0.82385,2426.1,2425.9,9.18875113]
[1750899436226,0.82387,2426.0,2425.9,9.18875113]
[1750899436729,0.82385,2426.1,2425.9,10.01265113]
[1750899437126,0.82387,2426.0,2425.9,9.18875113]
[1750899437429,0.82385,2426.1,2425.9,10.01265113]
[1750899437832,0.82385,2426.1,2425.9,9.18875113]
[1750899438532,0.82385,2426.1,2425.9,10.01265113]
[1750899439531,0.82387,2426.0,2425.9,9.18875113]
[1750899440930,0.82387,2426.0,2425.9,2.68475113]
[1750899441235,2.0906,2426.2,2425.8,7.1949]
[1750899441236,0.8239,2425.9,2425.8,6.504]
[1750899441829,0.82388,2426.0,2425.8,7.3279]
[1750899442033,2.21926,2426.1,2425.9,0.8239]
[1750899442235,0.82388,2426.0,2425.8,0.82392]
[1750899442532,0.82393,2425.8,2425.7,13.11415113]
[1750899442732,0.82392,2425.9,2425.7,13.93812113]
[1750899442924,0.82389,2426.0,2425.8,0.82392]
[1750899443232,0.82389,2426.0,2425.7,13.11415113]
[1750899443233,0.8239,2425.9,2425.7,13.93809113]
[1750899443430,2.21924,2426.1,2425.9,0.82388]
[1750899443633,0.82387,2426.0,2425.9,2.68475113]
[1750899444526,0.82385,2426.1,2426.0,0.82387]
[1750899444726,0.82385,2426.1,2425.9,3.50863113]
[1750899444929,0.82385,2426.1,2426.0,0.7269]
[1750899445129,0.82385,2426.1,2426.0,1.55077]
[1750899445335,0.82385,2426.1,2426.0,0.7269]
[1750899445736,0.82385,2426.1,2426.0,1.55077]
[1750899445925,0.6947,2426.2,2426.0,1.55077]
[1750899446122,1.4008,2426.3,2426.1,2.68475113]
[1750899446326,0.8238,2426.2,2426.1,2.68475113]
[1750899448739,2.22458,2426.3,2426.1,2.68475113]
[1750899448937,0.8238,2426.2,2426.1,2.68475113]
[1750899451337,0.82379,2426.3,2426.1,3.50858113]
[1750899451638,0.8238,2426.2,2426.1,3.50858113]
[1750899452038,0.8238,2426.2,2426.1,2.68475113]
[1750899454040,0.82379,2426.3,2426.1,3.50858113]
[1750899456340,0.82379,2426.3,2426.1,3.50856113]
[1750899457334,1.03690901,2426.2,2426.1,3.50856113]
[1750899457641,0.8238,2426.2,2426.1,2.68475113]
[1750899458142,1.8607259,2426.2,2426.1,2.68475113]
[1750899462545,1.0369259,2426.2,2426.1,3.50858113]
[1750899462745,7.8949,2426.8,2426.3,0.82374]
[1750899463041,0.82367,2426.6,2426.5,2.68475113]
[1750899463235,1.86092553,2426.6,2426.5,2.68475113]
[1750899464139,1.03725553,2426.6,2426.5,2.68475113]
[1750899464336,1.86091553,2426.6,2426.5,2.68475113]
[1750899464640,1.03725553,2426.6,2426.5,2.68475113]
[1750899464946,1.03725553,2426.6,2426.5,3.50845113]
[1750899467043,1.03725553,2426.6,2426.5,2.68475113]
[1750899467645,1.86091553,2426.6,2426.5,2.68475113]
[1750899468345,0.8237,2426.5,2426.4,41.5104]
[1750899468644,1.86095553,2426.5,2426.4,41.5104]
[1750899470246,0.8237,2426.5,2426.4,41.5104]
[1750899472448,0.82368,2426.6,2426.4,42.33413]
[1750899472645,3.2078,2427.0,2426.5,2.68475113]
[1750899472844,2.0576,2427.2,2426.9,3.2078]
[1750899473040,0.8235,2427.1,2427.0,2.68475113]
[1750899473348,0.8235,2427.1,2427.0,3.35445113]
[1750899475552,0.8235,2427.1,2427.0,0.6697]
[1750899477550,1.85664395,2427.1,2427.0,0.6697]
[1750899478749,1.03314395,2427.1,2427.0,4.17798113]
[1750899479050,4.03123,2427.3,2427.0,4.17798113]
[1750899479251,4.03123,2427.3,2427.2,2.68475113]
[1750899479451,5.06391185,2427.3,2427.2,2.68475113]
[1750899480744,5.06390185,2427.3,2427.2,2.68475113]
[1750899481354,0.82347,2427.2,2427.0,4.17796113]
[1750899481655,4.5902,2427.3,2427.2,0.82346]
[1750899481844,1.03256542,2427.3,2427.2,3.50821113]
[1750899482248,3.2078,2427.6,2427.5,0.82336]
[1750899482447,1.3824,2427.7,2427.5,3.50809113]
[1750899482753,2.20569,2427.7,2427.5,3.50809113]
[1750899483149,1.3824,2427.7,2427.5,3.50809113]
[1750899483348,0.82332,2427.6,2427.4,0.7293]
[1750899483946,0.82333,2427.6,2427.4,1.55269]
[1750899484349,0.82333,2427.6,2427.4,0.7293]
[1750899484851,0.7088,2427.6,2427.4,1.55269]
[1750899485065,1.3824,2427.7,2427.5,3.50808113]
[1750899485351,4.6515,2428.0,2427.8,0.82323]
[1750899485563,4.6515,2428.0,2427.9,3.50797113]
[1750899485748,3.9189,2428.0,2427.9,3.50797113]
[1750899485944,0.82327,2427.8,2427.7,2.68475113]
[1750899486155,0.6908,2427.9,2427.5,3.2078]
[1750899486457,0.82332,2427.6,2427.5,3.2078]
[1750899486847,1.53442,2427.6,2427.5,3.2078]
[1750899491856,0.82342,2427.3,2427.2,9.6988]
[1750899492558,1.4344,2427.5,2427.2,9.6988]
[1750899492761,0.82339,2427.4,2427.2,10.52224]
[1750899493657,1.4344,2427.5,2427.3,2.68475113]
[1750899493953,0.7111,2427.6,2427.4,0.82338]
[1750899494153,1.53443,2427.6,2427.4,0.82338]
[1750899494456,1.53443,2427.6,2427.4,0.82339]
[1750899494960,0.7111,2427.6,2427.5,0.82336]
[1750899495254,2.28457,2427.8,2427.6,0.82332]
[1750899495465,0.82329,2427.7,2427.5,6.71589113]
[1750899496260,1.4613,2427.7,2427.6,0.82332]
[1750899496562,4.031,2428.0,2427.8,0.82324]
[1750899496856,0.7317,2427.9,2427.8,0.82324]
[1750899497358,1.55492,2427.9,2427.7,3.50802113]
[1750899497562,2.98002,2427.9,2427.7,3.50802113]
[1750899497753,2.1568,2427.9,2427.8,0.82326]
[1750899498057,2.1568,2427.9,2427.7,3.50802113]
[1750899498865,2.1568,2427.9,2427.8,0.82326]
[1750899499262,0.7082,2428.2,2428.0,0.82316]
[1750899499465,0.7034,2428.1,2428.0,0.82319]
[1750899499764,1.52655,2428.1,2427.7,2.68475113]
[1750899499954,0.7034,2428.1,2427.9,0.82321]
[1750899500261,2.1285,2428.1,2428.0,0.82319]
[1750899500462,3.15665897,2428.1,2428.0,0.82319]
[1750899500958,3.15665897,2428.1,2427.9,3.50794113]
[1750899501162,0.82319,2428.0,2427.9,2.68475113]
[1750899501358,2.1285,2428.1,2427.7,2.68475113]
[1750899501561,0.82326,2427.8,2427.7,2.68475113]
[1750899501760,0.82324,2427.9,2427.7,2.68475113]
[1750899502263,0.82324,2427.9,2427.7,3.50803113]
[1750899502564,0.82326,2427.8,2427.7,2.68475113]
[1750899502758,0.82324,2427.9,2427.7,3.50804113]
[1750899503365,0.82326,2427.8,2427.7,2.68475113]
[1750899504763,0.82326,2427.8,2427.7,3.50804113]
[1750899504964,1.426,2428.0,2427.8,0.82326]
[1750899505164,0.8232,2428.0,2427.7,2.68475113]
[1750899505364,0.82326,2427.8,2427.7,2.68475113]
[1750899505757,0.82321,2428.0,2427.7,2.68475113]
[1750899506064,0.82321,2428.0,2427.8,0.82324]
[1750899506266,0.82322,2427.9,2427.7,3.50802113]
[1750899507065,0.7034,2428.1,2427.9,0.8232]
[1750899507267,1.52657,2428.1,2427.9,0.8232]
[1750899507460,1.52657,2428.1,2428.0,0.7274]
[1750899507858,0.7034,2428.1,2428.0,0.7274]
[1750899508059,1.52655,2428.1,2428.0,0.7274]
[1750899508369,3.93728065,2428.1,2428.0,0.7274]
[1750899513171,2.55568065,2428.1,2428.0,0.7274]
[1750899513561,4.00008065,2428.1,2428.0,0.7274]
[1750899514674,0.82329,2427.7,2427.6,6.487]
[1750899515667,0.82327,2427.8,2427.6,7.3103]
[1750899515860,0.82329,2427.7,2427.6,6.487]
[1750899516762,0.82329,2427.7,2427.6,7.31032]
[1750899517164,0.82329,2427.7,2427.6,6.487]
[1750899517864,1.4444,2427.9,2427.6,6.487]
[1750899518167,0.82326,2427.8,2427.6,7.3103]
[1750899518369,0.82326,2427.8,2427.6,6.487]
[1750899518569,0.82326,2427.8,2427.6,7.31032]
[1750899518769,2.26764,2427.9,2427.7,0.82329]
[1750899519070,0.82324,2427.9,2427.7,3.50804113]
[1750899519370,0.82324,2427.9,2427.8,0.732]
[1750899519667,0.82332,2427.6,2427.5,3.2078]
[1750899519868,0.82339,2427.4,2427.3,7.219]
[1750899520868,0.82338,2427.5,2427.3,8.04241]
[1750899521062,0.82339,2427.4,2427.3,8.04241]
[1750899521270,0.82339,2427.4,2427.3,7.219]
[1750899523374,2.20328,2427.5,2427.3,8.04242]
[1750899523672,1.3799,2427.5,2427.4,0.82339]
[1750899524172,0.702,2427.6,2427.5,0.82336]
[1750899524367,3.2078,2427.8,2427.5,2.68475113]
[1750899524570,1.85409631,2427.7,2427.5,2.68475113]
[1750899524770,0.82332,2427.6,2427.5,2.68475113]
[1750899525373,0.82331,2427.7,2427.5,3.50811113]
[1750899525674,1.4093,2427.9,2427.5,5.89255113]
[1750899525971,0.82332,2427.6,2427.5,5.89255113]
[1750899526170,0.82327,2427.8,2427.6,0.82331]
[1750899526371,1.03075645,2427.7,2427.6,0.82331]
[1750899527673,0.7264,2428.0,2427.8,0.82324]
[1750899527875,0.82313,2428.2,2427.9,3.50794113]
[1750899528075,1.85394857,2428.1,2427.9,3.50794113]
[1750899528270,0.41157,2428.2,2427.9,3.09636113]
[1750899528470,0.41159,2428.0,2427.9,2.68475113]
[1750899528677,1.4423605,2428.0,2427.9,2.68475113]
[1750899528875,1.0307705,2428.0,2427.8,3.2078]
[1750899529081,0.4116,2428.0,2427.8,3.61942]
[1750899529374,0.41161,2427.9,2427.8,3.2078]
[1750899529570,0.4116,2428.0,2427.8,3.61943]
[1750899529872,0.4116,2428.0,2427.8,3.2078]
[1750899530075,0.41161,2427.9,2427.8,3.2078]
[1750899530275,1.10571,2427.9,2427.8,3.2078]
[1750899530969,0.6941,2427.9,2427.8,3.2078]
[1750899531169,0.6941,2427.9,2427.8,3.61943]
[1750899531572,0.41159,2428.0,2427.8,3.61942]
[1750899532974,1.84829,2428.1,2427.9,0.41161]
[1750899533274,0.6771,2428.3,2428.0,0.41159]
[1750899533478,1.03025502,2428.2,2428.0,0.41159]
[1750899533680,1.03025502,2428.1,2428.0,0.41159]
[1750899533976,0.41156,2428.2,2428.0,0.41159]
[1750899534171,1.03025358,2428.1,2428.0,0.41159]
[1750899535584,1.44183358,2428.1,2427.8,3.2078]
[1750899535783,2.1045,2428.3,2427.8,5.89255113]
[1750899535986,0.4116,2428.0,2427.8,5.89255113]
[1750899536182,0.4116,2428.0,2427.8,6.30417113]
[1750899536383,0.41161,2428.0,2427.8,3.2078]
[1750899536587,0.41161,2428.0,2427.8,3.61942]
[1750899536883,0.41158,2428.1,2427.9,0.41161]
[1750899537389,0.41159,2428.0,2427.8,3.61942]
[1750899538691,1.4724,2428.2,2427.8,3.2078]
[1750899538884,1.44138318,2428.1,2427.9,0.4116]
[1750899539084,0.41158,2428.1,2427.9,0.4116]
[1750899539289,0.41158,2428.1,2427.9,3.09635113]
[1750899539591,1.88397,2428.2,2428.0,0.41159]
[1750899539783,1.44136315,2428.1,2427.9,3.09635113]
[1750899540089,1.4724,2428.2,2427.8,3.2078]
[1750899540386,0.4116,2428.0,2427.8,6.30417113]
[1750899540587,0.41161,2427.9,2427.8,5.89255113]
[1750899540886,1.4724,2428.2,2427.8,5.89255113]
[1750899541190,1.44136898,2428.1,2427.9,0.4116]
[1750899541383,0.41158,2428.1,2427.9,0.4116]
[1750899542293,0.4116,2428.0,2427.8,3.2078]
[1750899542483,0.4116,2428.0,2427.8,6.30417113]
[1750899543883,1.4724,2428.2,2427.8,5.89255113]
[1750899544181,0.41161,2427.9,2427.8,5.89255113]
[1750899547284,0.41161,2427.9,2427.8,2.68475113]
[1750899548391,0.41158,2428.1,2427.9,0.41161]
[1750899548891,0.41158,2428.1,2427.8,3.09637113]
[1750899549092,1.4724,2428.2,2427.8,3.09637113]
[1750899549297,0.41161,2427.9,2427.8,2.68475113]
[1750899550998,0.41164,2427.7,2427.6,9.6948]
[1750899551194,0.41164,2427.7,2427.6,10.383]
[1750899551690,0.6803,2427.8,2427.6,13.06775113]
[1750899551894,0.41161,2427.9,2427.7,0.41163]
[1750899552085,0.41161,2427.9,2427.8,2.68475113]
[1750899552286,3.2078,2428.3,2427.8,4.54717113]
[1750899552484,1.743697,2428.2,2427.8,2.68475113]
[1750899552687,1.030297,2428.1,2427.8,2.68475113]
[1750899552892,0.41161,2427.9,2427.8,2.68475113]
[1750899556195,1.44289882,2427.9,2427.8,2.68475113]
[1750899557399,1.81688,2428.1,2427.8,3.09638113]
[1750899557698,1.03155272,2428.0,2427.8,3.09638113]
[1750899557997,1.81688,2428.1,2427.8,3.09638113]
[1750899558200,1.03155136,2428.0,2427.8,2.68475113]
[1750899558386,1.03155136,2427.9,2427.8,2.68475113]
[1750899559000,1.44316136,2427.9,2427.8,2.68475113]
[1750899560101,1.03155136,2427.9,2427.8,3.09637113]
[1750899560396,1.03155136,2427.9,2427.8,2.68475113]
[1750899560702,1.44316136,2427.9,2427.8,2.68475113]
[1750899562605,1.03155136,2427.9,2427.8,2.68475113]
[1750899562901,1.44316136,2427.9,2427.8,2.68475113]
[1750899568208,1.44316136,2427.9,2427.8,3.09638113]
[1750899568209,1.03155136,2427.9,2427.8,3.09638113]
[1750899568506,1.4053,2428.1,2428.0,0.41159]
[1750899568704,2.43849721,2428.1,2428.0,2.68475113]
[1750899569009,2.85006721,2428.1,2428.0,2.68475113]
[1750899569204,2.85006721,2428.1,2428.0,3.35175113]
[1750899569604,1.03319721,2428.1,2428.0,3.35175113]
[1750899570002,1.03319721,2428.1,2428.0,3.76334113]
[1750899570508,1.03319721,2428.1,2428.0,3.35175113]
[1750899570708,1.03319721,2428.1,2428.0,3.76334113]
[1750899571410,1.03312019,2428.1,2428.0,3.76334113]
[1750899572211,1.03312019,2428.1,2428.0,3.35175113]
[1750899572597,1.44469019,2428.1,2428.0,3.35175113]
[1750899573412,2.80979019,2428.1,2428.0,3.35175113]
[1750899575109,2.39822019,2428.1,2428.0,3.35175113]
[1750899575311,2.39822019,2428.1,2428.0,3.76334113]
[1750899575505,2.39822019,2428.1,2428.0,3.35175113]
[1750899576306,2.80979019,2428.1,2428.0,3.35175113]
[1750899578707,0.41163,2427.8,2427.7,3.2078]
[1750899578900,0.41166,2427.6,2427.5,7.1594]
[1750899579305,0.41166,2427.6,2427.5,6.476]
[1750899579505,1.76666,2427.6,2427.5,6.476]
[1750899579701,2.43346,2427.6,2427.5,6.476]
[1750899585614,2.43346,2427.6,2427.4,2.68475113]
[1750899586213,2.0218,2427.6,2427.4,3.09644113]
[1750899586519,1.355,2427.6,2427.4,3.09644113]
[1750899587404,1.76666,2427.6,2427.4,3.09644113]
[1750899587718,1.76666,2427.6,2427.4,2.68475113]
[1750899588013,1.76666,2427.6,2427.4,3.09644113]
[1750899588808,1.10695,2427.7,2427.4,3.09644113]
[1750899589314,0.6953,2427.7,2427.5,0.41167]
[1750899589617,1.10694,2427.7,2427.6,2.68475113]
[1750899589812,2.44134,2427.7,2427.6,2.68475113]
[1750899593624,0.41168,2427.5,2427.4,5.89255113]
[1750899594722,0.41168,2427.5,2427.4,2.68475113]
[1750899594921,0.41166,2427.6,2427.4,2.68475113]
[1750899596637,2.0297,2427.7,2427.4,2.68475113]
[1750899596638,0.41168,2427.5,2427.4,2.68475113]
[1750899597630,1.88157,2427.6,2427.4,2.68475113]
[1750899599025,0.41167,2427.6,2427.4,2.68475113]
[1750899599725,0.41167,2427.6,2427.4,3.09644113]
[1750899600327,0.41167,2427.6,2427.4,2.68475113]
[1750899600523,0.41167,2427.6,2427.4,3.09644113]
[1750899601026,1.10695,2427.7,2427.4,3.09644113]
[1750899601521,0.41169,2427.4,2427.3,0.6726]
[1750899602326,0.6953,2427.7,2427.3,3.8804]
[1750899602625,0.41166,2427.6,2427.5,2.68475113]
[1750899603019,9.12864088,2427.6,2427.5,29.89245633]
[1750899603219,19.46942824,2427.6,2427.5,27.31928633]
[1750899603423,17.00644088,2427.6,2427.5,26.49285633]
[1750899604131,17.00644088,2427.6,2427.5,75.29920633]
[1750899604726,7.85268975,2427.6,2427.5,75.29920633]
[1750899604922,9.32168975,2427.6,2427.5,75.29920633]
[1750899608620,9.32137266,2427.6,2427.5,75.29920633]
[1750899610034,1.03191266,2427.6,2427.5,78.39563746]
[1750899610328,3.2078,2427.8,2427.5,78.71205746]
[1750899610637,1.03171948,2427.7,2427.6,0.41166]
[1750899610827,1.44335948,2427.7,2427.5,79.12372746]
[1750899611027,0.41166,2427.6,2427.5,76.02730633]
[1750899611228,1.44342953,2427.6,2427.5,76.02730633]
[1750899612337,0.41165,2427.7,2427.5,76.43898633]
[1750899612639,0.41166,2427.6,2427.5,76.02730633]
[1750899613132,4.12784036,2427.6,2427.5,75.29920633]
[1750899613332,6.13024036,2427.6,2427.5,75.29920633]
[1750899614638,3.44548923,2427.6,2427.5,75.29920633]
[1750899615735,1.03142923,2427.6,2427.5,75.71088633]
[1750899616240,1.03142923,2427.6,2427.5,76.43708633]
[1750899616940,3.2078,2427.8,2427.7,0.41164]
[1750899617146,4.23911568,2427.8,2427.7,0.41164]
[1750899617938,4.65074568,2427.8,2427.6,0.41165]
[1750899618143,1.03131568,2427.7,2427.5,76.02540633]
[1750899618335,0.41166,2427.6,2427.5,76.02540633]
[1750899618540,1.44306987,2427.6,2427.5,75.29920633]
[1750899619147,3.49796987,2427.6,2427.5,75.29920633]
[1750899620254,2.46656,2427.6,2427.5,75.29920633]
[1750899620442,3.49651402,2427.6,2427.5,75.29920633]
[1750899625054,6.18126515,2427.6,2427.5,75.29920633]
[1750899625752,8.49651402,2427.6,2427.5,72.54636633]
[1750899625951,8.49651402,2427.6,2427.5,71.26593016]
[1750899626251,8.49651402,2427.6,2427.5,70.39663016]
[1750899627055,3.49651402,2427.6,2427.5,70.39663016]
[1750899627256,35.04351402,2427.6,2427.5,70.39663016]
[1750899629047,1.44161402,2427.6,2427.5,70.39663016]
[1750899643160,1.02995402,2427.6,2427.5,70.39663016]
[1750899643472,5.3131,2427.8,2427.7,0.41164]
[1750899643473,3.2078,2427.8,2427.7,0.41164]
[1750899643762,3.2078,2427.8,2427.7,3.09639113]
[1750899643962,4.23862305,2427.8,2427.7,3.09639113]
[1750899644163,4.23862305,2427.8,2427.7,4.50689113]
[1750899644765,4.65025305,2427.8,2427.7,1.4105]
[1750899645157,4.65025305,2427.8,2427.7,0.7032]
[1750899645468,6.79935305,2427.8,2427.7,0.7032]
[1750899648071,29.72725305,2427.8,2427.7,0.7032]
[1750899648364,29.72725305,2427.8,2427.7,1.11484]
[1750899648365,29.31562305,2427.8,2427.7,1.11484]
[1750899648567,29.31562305,2427.8,2427.7,1.79514]
[1750899649068,1.44245305,2427.8,2427.7,2.7349]
[1750899649273,1.03082305,2427.8,2427.7,3.14654]
[1750899650367,1.44245305,2427.8,2427.7,2.7349]
[1750899650562,1.44245305,2427.8,2427.7,3.14654]
[1750899650867,1.03082305,2427.8,2427.7,3.14654]
[1750899651265,1.44245305,2427.8,2427.7,3.14654]
[1750899651763,1.03082305,2427.8,2427.7,3.14654]
[1750899652464,1.44245305,2427.8,2427.7,2.7349]
[1750899653065,1.44245305,2427.8,2427.7,3.14654]
[1750899653772,1.03082305,2427.8,2427.7,3.14654]
[1750899654766,1.44245305,2427.8,2427.7,2.7349]
[1750899654972,1.44245305,2427.8,2427.7,1.3835]
[1750899659774,0.41166,2427.6,2427.5,70.39663016]
[1750899659981,31.37621113,2427.6,2427.5,70.39663016]
[1750899660273,32.40703418,2427.6,2427.5,70.39663016]
[1750899660474,33.86513418,2427.6,2427.5,70.39663016]
[1750899660772,33.86513418,2427.6,2427.5,69.36453016]
[1750899660972,38.86513418,2427.6,2427.5,12.58570458]
[1750899661173,38.93685822,2427.6,2427.5,1.77537753]
[1750899661475,38.93685822,2427.6,2426.5,0.6647]
[1750899661476,0.41183,2426.6,2426.5,0.6647]
[1750899661673,0.41183,2426.6,2426.2,1.4558]
[1750899661674,0.41187,2426.4,2426.2,1.4558]
[1750899661870,0.41187,2426.4,2426.2,2.1349]
[1750899662270,0.41185,2426.5,2426.3,1.4226]
[1750899662885,28.2788,2426.6,2426.3,4.10735113]
[1750899663176,0.41185,2426.5,2426.3,4.10735113]
[1750899663380,28.2788,2426.6,2426.3,4.10735113]
[1750899663572,28.2798,2426.6,2426.3,4.10735113]
[1750899663776,3.2078,2426.6,2426.3,4.51923113]
[1750899664170,3.2078,2426.6,2426.4,1.83446]
[1750899664980,3.2078,2426.6,2426.4,1.4226]
[1750899665380,25.48381,2426.7,2426.4,1.83446]
[1750899665672,25.48681,2426.7,2426.4,1.83446]
[1750899666079,25.075,2426.7,2426.3,2.68475113]
[1750899666278,0.41185,2426.5,2426.3,2.68475113]
[1750899666480,0.41185,2426.5,2426.3,3.09663113]
[1750899666678,0.41185,2426.5,2426.3,2.68475113]
[1750899667476,0.41188,2426.3,2426.2,0.6791]
[1750899667677,0.41187,2426.4,2426.2,0.6791]
[1750899669782,0.41188,2426.3,2426.2,0.6791]
[1750899670182,1.4185,2426.6,2426.2,0.6791]
[1750899670183,0.41186,2426.5,2426.2,0.6791]
[1750899670385,0.41187,2426.4,2426.2,1.09099]
[1750899670680,0.41185,2426.5,2426.3,0.41188]
[1750899670979,0.41184,2426.6,2426.4,0.41186]
[1750899671184,0.41184,2426.6,2426.4,1.82456]
[1750899671482,0.41186,2426.5,2426.3,3.09662113]
[1750899672081,25.075,2426.7,2426.4,0.41186]
[1750899672278,0.41183,2426.6,2426.4,0.41186]
[1750899672679,25.075,2426.7,2426.5,0.41185]
[1750899672882,0.41182,2426.7,2426.5,0.41185]
[1750899673286,25.48982,2426.7,2426.5,0.41185]
[1750899673583,25.48982,2426.7,2426.6,0.6999]
[1750899673984,0.41181,2426.7,2426.6,0.6999]
[1750899675087,3.2078,2426.7,2426.3,2.68475113]
[1750899675287,0.41186,2426.4,2426.3,9.14375113]
[1750899675590,0.41186,2426.5,2426.3,9.55563113]
[1750899676283,0.41186,2426.5,2426.3,10.93123113]
[1750899676488,0.41186,2426.4,2426.3,10.51935113]
[1750899676785,0.41186,2426.5,2426.3,9.55563113]
[1750899676986,0.41186,2426.4,2426.3,9.14375113]
[1750899678988,0.41188,2426.3,2426.2,0.7223]
[1750899679890,4.91606,2426.7,2426.2,1.1342]
[1750899679891,0.41187,2426.4,2426.2,1.1342]
[1750899680188,0.41187,2426.4,2426.3,3.09663113]
[1750899680685,0.41187,2426.4,2426.3,2.68475113]
[1750899680890,0.41186,2426.5,2426.3,3.09663113]
[1750899681489,0.41186,2426.4,2426.3,2.68475113]
[1750899684092,0.41188,2426.3,2426.2,0.7223]
[1750899684281,0.41196,2425.8,2425.7,2.68475113]
[1750899684489,0.41196,2425.8,2425.7,0.7045]
[1750899687189,0.41195,2425.9,2425.7,3.38925113]
[1750899687391,0.41196,2425.8,2425.7,2.084]
[1750899687787,0.41196,2425.9,2425.7,2.084]
[1750899687986,3.2078,2426.0,2425.8,3.09671113]
[1750899688295,3.61973,2426.0,2425.8,2.68475113]
[1750899688490,3.61973,2426.0,2425.8,3.09671113]